fUST/lending_fUST_20250713
["ID","MTS","AMOUNT","RATE_DAILY","PERIOD"]
[371555127,1752347438669,-507.43,0.00016438,2]
[371555128,1752347438678,-804.76,0.00016438,2]
[371555129,1752347438688,-460.0,0.00016438,2]
[371555130,1752347438698,-460.0,0.00016438,2]
[371555132,1752347438711,-460.0,0.00016438,2]
[371555133,1752347438720,-460.0,0.00016438,2]
[371555134,1752347438731,-460.0,0.00016438,2]
[371555153,1752347438915,-460.0,0.00016438,2]
[371555156,1752347438926,-460.0,0.00016438,2]
[371555158,1752347438935,-1008.5,0.00016438,2]
[371555160,1752347438945,-460.0,0.00016438,2]
[371555161,1752347438954,-460.0,0.00016438,2]
[371555164,1752347438964,-355.92693882,0.00016438,2]
[371555166,1752347438977,-146.54273153,0.00016438,2]
[371555168,1752347438986,-460.0,0.00016438,2]
[371555170,1752347438996,-305.02908202,0.00016438,2]
[371555172,1752347439006,-460.0,0.00016438,2]
[371555174,1752347439015,-460.0,0.00016438,2]
[371555176,1752347439034,-460.0,0.00016438,2]
[371555178,1752347439044,-460.0,0.00016438,2]
[371555180,1752347439054,-38.26090492,0.00016438,2]
[371555181,1752347439066,-402.67135502,0.00016438,2]
[371555182,1752347439083,-19.06774006,0.00016438,2]
[371555183,1752347439094,-460.0,0.00016438,2]
[371555184,1752347439112,-460.0,0.00016438,2]
[371555185,1752347439123,-448.83137158,0.00016438,2]
[371555186,1752347439134,-418.51220069,0.00016438,2]
[371555187,1752347439154,-41.48779931,0.00016438,2]
[371555188,1752347439164,-460.0,0.00016438,2]
[371555189,1752347439174,-460.0,0.00016438,2]
[371555190,1752347439184,-460.0,0.00016438,2]
[371555191,1752347439193,-460.0,0.00016438,2]
[371555192,1752347439203,-460.0,0.00016438,2]
[371555193,1752347439212,-460.0,0.00016438,2]
[371555194,1752347439222,-460.0,0.00016438,2]
[371555195,1752347439232,-460.0,0.00016438,2]
[371555196,1752347439242,-310.57003224,0.00016438,2]
[371555197,1752347439254,-296.92996776,0.00016438,2]
[371555198,1752347439264,-434.05003144,0.00016438,2]
[371555199,1752347439276,-25.94996856,0.00016438,2]
[371555200,1752347439286,-796.06,0.00016438,2]
[371555201,1752347439296,-460.0,0.00016438,2]
[371555202,1752347439307,-15.87916519,0.00016438,2]
[371555207,1752347439638,-444.12083481,0.00016438,2]
[371555208,1752347439647,-579.38,0.00016438,2]
[371555209,1752347439658,-460.0,0.00016438,2]
[371555210,1752347439667,-460.0,0.00016438,2]
[371555211,1752347439677,-460.0,0.00016438,2]
[371555212,1752347439686,-460.0,0.00016438,2]
[371555213,1752347439696,-460.0,0.00016438,2]
[371555214,1752347439709,-460.0,0.00016438,2]
[371555215,1752347439719,-460.0,0.00016438,2]
[371555216,1752347439729,-460.0,0.00016438,2]
[371555217,1752347439738,-460.0,0.00016438,2]
[371555218,1752347439750,-646.54,0.00016438,2]
[371555219,1752347439759,-460.0,0.00016438,2]
[371555220,1752347439768,-460.0,0.00016438,2]
[371555221,1752347439780,-460.0,0.00016438,2]
[371555222,1752347439789,-460.0,0.00016438,2]
[371555223,1752347439799,-1931.92,0.00016438,2]
[371555224,1752347439809,-460.0,0.00016438,2]
[371555225,1752347439819,-460.0,0.00016438,2]
[371555226,1752347439828,-426.69,0.00016438,2]
[371555227,1752347439838,-460.0,0.00016438,2]
[371555228,1752347439847,-460.0,0.00016438,2]
[371555229,1752347439856,-460.0,0.00016438,2]
[371555230,1752347439867,-460.0,0.00016438,2]
[371555231,1752347439879,-460.0,0.00016438,2]
[371555232,1752347439889,-500.0,0.00016473,2]
[371555233,1752347439899,-500.0,0.00016473,2]
[371555234,1752347439909,-460.0,0.00016712,2]
[371555235,1752347439918,-460.0,0.00016712,2]
[371555236,1752347439927,-460.0,0.00016712,2]
[371555237,1752347439938,-317.66006749,0.00016712,2]
[371555238,1752347439948,-460.0,0.00016712,2]
[371555239,1752347439958,-460.0,0.00016712,2]
[371555240,1752347439967,-460.0,0.00016712,2]
[371555241,1752347439979,-460.0,0.00016712,2]
[371555242,1752347439989,-460.0,0.00016712,2]
[371555243,1752347439999,-460.0,0.00016712,2]
[371555244,1752347440008,-460.0,0.00016712,2]
[371555245,1752347440019,-460.0,0.00016712,2]
[371555246,1752347440029,-460.0,0.00016712,2]
[371555247,1752347440039,-460.0,0.00016712,2]
[371555248,1752347440048,-460.0,0.00016712,2]
[371555249,1752347440058,-460.0,0.00016712,2]
[371555250,1752347440067,-460.0,0.00016712,2]
[371555251,1752347440077,-460.0,0.00016712,2]
[371555252,1752347440087,-460.0,0.00016712,2]
[371555253,1752347440097,-543.93316443,0.00016712,2]
[371555254,1752347440107,-460.0,0.00016712,2]
[371555255,1752347440116,-460.0,0.00016712,2]
[371555256,1752347440126,-460.0,0.00016712,2]
[371555257,1752347440136,-460.0,0.00016712,2]
[371555258,1752347440145,-783.43,0.00016712,2]
[371555259,1752347440154,-460.0,0.00016712,2]
[371555260,1752347440163,-460.0,0.00016712,2]
[371555261,1752347440172,-607.04,0.00016712,2]
[371555262,1752347440182,-316.52743454,0.00016712,2]
[371555263,1752347440195,-143.47256546,0.00016712,2]
[371555264,1752347440204,-460.0,0.00016712,2]
[371555265,1752347440214,-460.0,0.00016712,2]
[371555266,1752347440224,-460.0,0.00016712,2]
[371555267,1752347440233,-460.0,0.00016712,2]
[371555268,1752347440242,-460.0,0.00016712,2]
[371555269,1752347440252,-460.0,0.00016712,2]
[371555270,1752347440261,-460.0,0.00016712,2]
[371555271,1752347440270,-460.0,0.00016712,2]
[371555272,1752347440280,-460.0,0.00016712,2]
[371555273,1752347440289,-460.0,0.00016712,2]
[371555274,1752347440298,-460.0,0.00016712,2]
[371555275,1752347440308,-460.0,0.00016712,2]
[371555276,1752347440317,-460.0,0.00016712,2]
[371555277,1752347440326,-460.0,0.00016712,2]
[371555278,1752347440343,-460.0,0.00016712,2]
[371555279,1752347440353,-507.43,0.00016712,2]
[371555280,1752347440363,-804.76,0.00016712,2]
[371555281,1752347440373,-460.0,0.00016712,2]
[371555282,1752347440383,-460.0,0.00016712,2]
[371555283,1752347440395,-460.0,0.00016712,2]
[371555284,1752347440406,-460.0,0.00016712,2]
[371555285,1752347440416,-460.0,0.00016712,2]
[371555286,1752347440427,-1008.5,0.00016712,2]
[371555287,1752347440436,-460.0,0.00016712,2]
[371555288,1752347440445,-460.0,0.00016712,2]
[371555289,1752347440455,-460.0,0.00016712,2]
[371555290,1752347440464,-460.0,0.00016712,2]
[371555291,1752347440474,-460.0,0.00016712,2]
[371555292,1752347440484,-460.0,0.00016712,2]
[371555293,1752347440494,-460.0,0.00016712,2]
[371555294,1752347440504,-460.0,0.00016712,2]
[371555295,1752347440513,-460.0,0.00016712,2]
[371555296,1752347440523,-460.0,0.00016712,2]
[371555297,1752347440533,-460.0,0.00016712,2]
[371555298,1752347440542,-460.0,0.00016712,2]
[371555299,1752347440551,-599.36,0.00016712,2]
[371555300,1752347440561,-460.0,0.00016712,2]
[371555301,1752347440571,-460.0,0.00016712,2]
[371555302,1752347440581,-460.0,0.00016712,2]
[371555303,1752347440590,-460.0,0.00016712,2]
[371555304,1752347440600,-607.5,0.00016712,2]
[371555305,1752347440610,-796.06,0.00016712,2]
[371555306,1752347440620,-460.0,0.00016712,2]
[371555307,1752347440630,-579.38,0.00016712,2]
[371555308,1752347440640,-460.0,0.00016712,2]
[371555309,1752347440650,-460.0,0.00016712,2]
[371555310,1752347440660,-460.0,0.00016712,2]
[371555311,1752347440669,-460.0,0.00016712,2]
[371555312,1752347440679,-460.0,0.00016712,2]
[371555313,1752347440689,-460.0,0.00016712,2]
[371555314,1752347440699,-646.54,0.00016712,2]
[371555315,1752347440714,-460.0,0.00016712,2]
[371555316,1752347440725,-460.0,0.00016712,2]
[371555317,1752347440738,-460.0,0.00016712,2]
[371555318,1752347440750,-460.0,0.00016712,2]
[371555319,1752347440762,-1931.92,0.00016712,2]
[371555320,1752347440775,-460.0,0.00016712,2]
[371555321,1752347440787,-587.22400294,0.00016712,2]
[371555322,1752347440797,-460.0,0.00016712,2]
[371555323,1752347440807,-460.0,0.00016712,2]
[371555324,1752347440817,-460.0,0.00016712,2]
[371555325,1752347440829,-947.28099199,0.000169,2]
[371555326,1752347440840,-710.47,0.00016976,3]
[371555327,1752347440852,-355.23,0.00016976,3]
[371555328,1752347440863,-177.62,0.00016976,3]
[371555329,1752347440876,-532.88,0.00016976,3]
[371555330,1752347440888,-460.0,0.00016986,2]
[371555331,1752347440900,-460.0,0.00016986,2]
[371555332,1752347440912,-460.0,0.00016986,2]
[371555333,1752347440924,-460.0,0.00016986,2]
[371555334,1752347440935,-460.0,0.00016986,2]
[371555335,1752347440946,-320.03788471,0.00016986,2]
[371555336,1752347440958,-460.0,0.00016986,2]
[371555337,1752347440970,-460.0,0.00016986,2]
[371555338,1752347440982,-460.0,0.00016986,2]
[371555339,1752347440995,-460.0,0.00016986,2]
[371555340,1752347441007,-460.0,0.00016986,2]
[371555341,1752347441018,-460.0,0.00016986,2]
[371555342,1752347441029,-460.0,0.00016986,2]
[371555343,1752347441041,-591.79,0.00016986,2]
[371555344,1752347441052,-460.0,0.00016986,2]
[371555345,1752347441064,-460.0,0.00016986,2]
[371555346,1752347441075,-460.0,0.00016986,2]
[371555347,1752347441086,-460.0,0.00016986,2]
[371555348,1752347441097,-460.0,0.00016986,2]
[371555349,1752347441108,-460.0,0.00016986,2]
[371555350,1752347441119,-783.43,0.00016986,2]
[371555351,1752347441132,-460.0,0.00016986,2]
[371555352,1752347441144,-607.04,0.00016986,2]
[371555353,1752347441155,-460.0,0.00016986,2]
[371555354,1752347441166,-460.0,0.00016986,2]
[371555355,1752347441177,-460.0,0.00016986,2]
[371555356,1752347441187,-460.0,0.00016986,2]
[371555357,1752347441196,-460.0,0.00016986,2]
[371555358,1752347441206,-460.0,0.00016986,2]
[371555359,1752347441217,-460.0,0.00016986,2]
[371555360,1752347441228,-460.0,0.00016986,2]
[371555361,1752347441239,-460.0,0.00016986,2]
[371555362,1752347441251,-460.0,0.00016986,2]
[371555363,1752347441262,-460.0,0.00016986,2]
[371555364,1752347441274,-460.0,0.00016986,2]
[371555365,1752347441285,-507.43,0.00016986,2]
[371555366,1752347441296,-685.09167042,0.00016986,2]
[371555367,1752347441311,-119.66832958,0.00016986,2]
[371555368,1752347441321,-460.0,0.00016986,2]
[371555369,1752347441333,-460.0,0.00016986,2]
[371555370,1752347441345,-460.0,0.00016986,2]
[371555371,1752347441356,-17.18459242,0.00016986,2]
[371555372,1752347441370,-534.94906441,0.00016986,2]
[371555373,1752347441385,-456.36634317,0.00016986,2]
[371555374,1752347441396,-252.0716156,0.00016986,2]
[371555375,1752347441412,-207.9283844,0.00016986,2]
[371555376,1752347441423,-460.0,0.00016986,2]
[371555377,1752347441433,-460.0,0.00016986,2]
[371555378,1752347441443,-102.99859511,0.00016986,2]
[371555379,1752347441456,-357.00140489,0.00016986,2]
[371555380,1752347441466,-460.0,0.00016986,2]
[371555381,1752347441476,-432.04866161,0.00016986,2]
[371555382,1752347441489,-27.95133839,0.00016986,2]
[371555383,1752347441500,-460.0,0.00016986,2]
[371555384,1752347441511,-325.67571086,0.00016986,2]
[371555391,1752347442917,-167.63284172,0.00016338,2]
[371555392,1752347442936,-460.0,0.00016438,2]
[371555394,1752347442946,-455.83,0.00016712,2]
[371555395,1752347442957,-134.32428914,0.00016986,2]
[371555396,1752347442968,-607.5,0.00016986,2]
[371555398,1752347442978,-796.06,0.00016986,2]
[371555400,1752347442990,-460.0,0.00016986,2]
[371555401,1752347443000,-579.38,0.00016986,2]
[371555402,1752347443020,-460.0,0.00016986,2]
[371555403,1752347443035,-460.0,0.00016986,2]
[371555404,1752347443046,-460.0,0.00016986,2]
[371555405,1752347443057,-646.54,0.00016986,2]
[371555406,1752347443068,-460.0,0.00016986,2]
[371555407,1752347443079,-460.0,0.00016986,2]
[371555408,1752347443091,-1931.92,0.00016986,2]
[371555409,1752347443101,-460.0,0.00016986,2]
[371555410,1752347443112,-460.0,0.00016986,2]
[371555411,1752347443122,-1000.0,0.00017021,2]
[371555412,1752347443133,-1000.0,0.00017021,2]
[371555413,1752347443144,-179.970425,0.00017208,2]
[371555414,1752347443156,-947.28099189,0.0001721,2]
[371555415,1752347443166,-460.0,0.0001726,2]
[371555416,1752347443177,-460.0,0.0001726,2]
[371555417,1752347443188,-460.0,0.0001726,2]
[371555418,1752347443198,-458.16464854,0.0001726,2]
[371555419,1752347443212,-1.83535146,0.0001726,2]
[371555420,1752347443222,-460.0,0.0001726,2]
[371555421,1752347443233,-259.23127671,0.0001726,2]
[371555428,1752347445964,-460.0,0.00016438,2]
[371555429,1752347445974,-460.0,0.00016438,2]
[371555430,1752347445984,-460.0,0.00016712,2]
[371555433,1752347446164,-159.70735303,0.00016986,2]
[371555434,1752347480475,1033.0,0.00024658,60]
[371555436,1752347702669,214.06445078,0.00015945,2]
[371555438,1752347763361,171.261748,0.00013699,2]
[371555439,1752348029124,24900.0,0.00015521,2]
[371555441,1752348247669,12001.6228661,0.00015583,2]
[371555442,1752348304908,263.89939287,0.00015945,2]
[371555443,1752348315631,208.25,0.00022526,30]
[371555446,1752348398155,257.041394,0.0001546,2]
[371555447,1752348400674,205.98,0.0002254,30]
[371555452,1752348472190,10000.0,0.0001546,2]
[371555453,1752348489433,203.74,0.00022522,30]
[371555468,1752348569897,201.51,0.00022552,30]
[371555469,1752348606968,158.33963572,0.00015945,2]
[371555491,1752348632104,-453.09012031,0.00016338,2]
[371555492,1752348632117,-1200.0,0.00016436,2]
[371555493,1752348632128,-300.0,0.00016436,2]
[371555494,1752348632137,-300.0,0.00016436,2]
[371555496,1752348632147,-1200.0,0.00016437,2]
[371555498,1752348632156,-300.0,0.00016437,2]
[371555500,1752348632165,-460.0,0.00016438,2]
[371555501,1752348632175,-460.0,0.00016438,2]
[371555503,1752348632186,-460.0,0.00016438,2]
[371555504,1752348632197,-460.0,0.00016438,2]
[371555505,1752348632208,-460.0,0.00016438,2]
[371555506,1752348632217,-460.0,0.00016438,2]
[371555507,1752348632227,-460.0,0.00016438,2]
[371555508,1752348632236,-460.0,0.00016438,2]
[371555509,1752348632246,-460.0,0.00016438,2]
[371555510,1752348632256,-460.0,0.00016438,2]
[371555511,1752348632265,-460.0,0.00016438,2]
[371555512,1752348632276,-460.0,0.00016438,2]
[371555513,1752348632286,-460.0,0.00016438,2]
[371555514,1752348632296,-460.0,0.00016438,2]
[371555515,1752348632306,-460.0,0.00016438,2]
[371555516,1752348632315,-460.0,0.00016438,2]
[371555517,1752348632325,-460.0,0.00016438,2]
[371555518,1752348632339,-460.0,0.00016438,2]
[371555519,1752348632349,-460.0,0.00016438,2]
[371555520,1752348632358,-460.0,0.00016438,2]
[371555521,1752348632368,-460.0,0.00016438,2]
[371555522,1752348632377,-460.0,0.00016438,2]
[371555523,1752348632387,-460.0,0.00016438,2]
[371555524,1752348632397,-460.0,0.00016438,2]
[371555525,1752348632406,-460.0,0.00016438,2]
[371555526,1752348632416,-460.0,0.00016438,2]
[371555527,1752348632425,-460.0,0.00016438,2]
[371555528,1752348632435,-460.0,0.00016438,2]
[371555529,1752348632445,-460.0,0.00016438,2]
[371555530,1752348632455,-460.0,0.00016438,2]
[371555531,1752348632464,-460.0,0.00016438,2]
[371555532,1752348632474,-460.0,0.00016438,2]
[371555533,1752348632485,-460.0,0.00016438,2]
[371555534,1752348632495,-460.0,0.00016438,2]
[371555535,1752348632504,-460.0,0.00016438,2]
[371555536,1752348632514,-460.0,0.00016438,2]
[371555537,1752348632523,-460.0,0.00016438,2]
[371555538,1752348632532,-460.0,0.00016438,2]
[371555539,1752348632542,-460.0,0.00016438,2]
[371555540,1752348632551,-460.0,0.00016438,2]
[371555541,1752348632560,-460.0,0.00016438,2]
[371555542,1752348632569,-460.0,0.00016438,2]
[371555543,1752348632579,-460.0,0.00016438,2]
[371555544,1752348632589,-469.47,0.00016438,2]
[371555545,1752348632599,-460.0,0.00016438,2]
[371555546,1752348632609,-460.0,0.00016438,2]
[371555547,1752348632618,-460.0,0.00016438,2]
[371555548,1752348632628,-460.0,0.00016438,2]
[371555549,1752348632638,-460.0,0.00016438,2]
[371555550,1752348632647,-460.0,0.00016438,2]
[371555551,1752348632657,-460.0,0.00016438,2]
[371555552,1752348632666,-460.0,0.00016438,2]
[371555553,1752348632676,-270.97257431,0.00016438,2]
[371555554,1752348632685,-680.19,0.00016438,2]
[371555555,1752348632696,-460.0,0.00016438,2]
[371555556,1752348632706,-460.0,0.00016438,2]
[371555557,1752348632715,-460.0,0.00016438,2]
[371555558,1752348632725,-460.0,0.00016438,2]
[371555559,1752348632734,-460.0,0.00016438,2]
[371555560,1752348632744,-460.0,0.00016438,2]
[371555561,1752348632754,-838.13,0.00016438,2]
[371555562,1752348632763,-606.69,0.00016438,2]
[371555563,1752348632773,-460.82733157,0.00016438,2]
[371555564,1752348632783,-472.26,0.00016438,2]
[371555565,1752348632792,-1093.71,0.00016438,2]
[371555566,1752348632802,-460.0,0.00016438,2]
[371555567,1752348632811,-460.0,0.00016438,2]
[371555568,1752348632821,-460.0,0.00016438,2]
[371555569,1752348632831,-460.0,0.00016438,2]
[371555570,1752348632841,-709.88,0.00016438,2]
[371555571,1752348632851,-460.0,0.00016438,2]
[371555572,1752348632861,-460.0,0.00016438,2]
[371555573,1752348632871,-460.0,0.00016438,2]
[371555574,1752348632882,-460.0,0.00016438,2]
[371555575,1752348632892,-460.0,0.00016438,2]
[371555576,1752348632902,-883.1,0.00016438,2]
[371555577,1752348632912,-460.0,0.00016438,2]
[371555578,1752348632921,-460.0,0.00016438,2]
[371555579,1752348632931,-460.0,0.00016438,2]
[371555580,1752348632940,-460.0,0.00016438,2]
[371555581,1752348632951,-460.0,0.00016438,2]
[371555582,1752348632961,-460.0,0.00016438,2]
[371555583,1752348632971,-460.0,0.00016438,2]
[371555584,1752348632982,-151.0,0.00016438,2]
[371555585,1752348632992,-460.0,0.00016438,2]
[371555586,1752348633002,-500.0,0.00016438,2]
[371555587,1752348633012,-151.0,0.00016438,2]
[371555588,1752348633022,-460.0,0.00016438,2]
[371555589,1752348633031,-460.0,0.00016438,2]
[371555590,1752348633045,-560.34,0.00016438,2]
[371555591,1752348633055,-156.58144289,0.00016438,2]
[371555592,1752348633065,-460.0,0.00016438,2]
[371555593,1752348633075,-500.0,0.00016438,2]
[371555594,1752348633086,-500.0,0.00016438,2]
[371555595,1752348633096,-1121.86,0.00016438,2]
[371555596,1752348633105,-1520.57213551,0.00016438,2]
[371555597,1752348633119,-157.42786449,0.00016438,2]
[371555598,1752348633130,-460.0,0.00016438,2]
[371555599,1752348633140,-460.0,0.00016438,2]
[371555600,1752348633149,-151.0,0.00016438,2]
[371555601,1752348633159,-500.0,0.00016438,2]
[371555602,1752348633169,-151.0,0.00016438,2]
[371555603,1752348633179,-151.0,0.00016438,2]
[371555604,1752348633189,-162.06312997,0.00016438,2]
[371555605,1752348633201,-132.42826625,0.00016438,2]
[371555610,1752348637882,-327.57173375,0.00016438,2]
[371555611,1752348637892,-151.0,0.00016438,2]
[371555612,1752348637902,-460.0,0.00016438,2]
[371555613,1752348637911,-61.42826625,0.00016438,2]
[371555614,1752348637922,-89.57173375,0.00016438,2]
[371555615,1752348637932,-151.00208844,0.00016438,2]
[371555616,1752348637941,-151.0,0.00016438,2]
[371555617,1752348637951,-460.0,0.00016438,2]
[371555618,1752348637961,-151.0,0.00016438,2]
[371555619,1752348637970,-151.0,0.00016438,2]
[371555620,1752348637979,-151.0,0.00016438,2]
[371555621,1752348637989,-460.0,0.00016438,2]
[371555622,1752348638000,-460.0,0.00016438,2]
[371555623,1752348638011,-460.0,0.00016438,2]
[371555624,1752348638020,-460.0,0.00016438,2]
[371555625,1752348638029,-677.35,0.00016438,2]
[371555626,1752348638042,-1047.54,0.00016438,2]
[371555627,1752348638051,-460.0,0.00016438,2]
[371555628,1752348638061,-460.0,0.00016438,2]
[371555629,1752348638070,-460.0,0.00016438,2]
[371555630,1752348638080,-151.74993914,0.00016438,2]
[371555631,1752348638090,-151.0,0.00016438,2]
[371555632,1752348638099,-841.43,0.00016438,2]
[371555634,1752348638109,-460.0,0.00016438,2]
[371555635,1752348638120,-460.0,0.00016438,2]
[371555636,1752348638129,-500.0,0.00016438,2]
[371555637,1752348638139,-151.0,0.00016438,2]
[371555639,1752348638148,-460.0,0.00016438,2]
[371555641,1752348638158,-500.0,0.00016438,2]
[371555643,1752348638167,-151.0,0.00016438,2]
[371555645,1752348638176,-460.0,0.00016438,2]
[371555647,1752348638185,-151.0,0.00016438,2]
[371555649,1752348638195,-500.0,0.00016438,2]
[371555650,1752348638205,-460.0,0.00016438,2]
[371555651,1752348638215,-460.0,0.00016438,2]
[371555652,1752348638224,-460.0,0.00016438,2]
[371555653,1752348638234,-2143.99,0.00016438,2]
[371555654,1752348638243,-460.0,0.00016438,2]
[371555655,1752348638252,-460.0,0.00016438,2]
[371555656,1752348638261,-460.0,0.00016438,2]
[371555657,1752348638270,-351.03804541,0.00016438,2]
[371555658,1752348638283,-108.96195459,0.00016438,2]
[371555659,1752348638293,-460.0,0.00016438,2]
[371555660,1752348638302,-460.0,0.00016438,2]
[371555661,1752348638312,-460.0,0.00016438,2]
[371555662,1752348638321,-460.0,0.00016438,2]
[371555663,1752348638331,-460.0,0.00016438,2]
[371555664,1752348638341,-460.0,0.00016438,2]
[371555665,1752348638354,-460.0,0.00016438,2]
[371555666,1752348638364,-460.0,0.00016438,2]
[371555667,1752348638373,-460.0,0.00016438,2]
[371555668,1752348638383,-460.0,0.00016438,2]
[371555669,1752348638393,-681.43,0.00016438,2]
[371555670,1752348638403,-151.0,0.00016465,2]
[371555671,1752348638412,-500.0,0.00016465,2]
[371555672,1752348638422,-151.0,0.00016465,2]
[371555673,1752348638431,-500.0,0.00016465,2]
[371555674,1752348638441,-500.0,0.00016465,2]
[371555675,1752348638451,-1678.0,0.00016465,2]
[371555676,1752348638461,-151.0,0.00016465,2]
[371555677,1752348638471,-500.0,0.00016465,2]
[371555678,1752348638480,-151.0,0.00016465,2]
[371555679,1752348638490,-151.0,0.00016465,2]
[371555680,1752348638499,-151.0,0.00016465,2]
[371555681,1752348638509,-151.0,0.00016465,2]
[371555682,1752348638519,-151.0,0.00016465,2]
[371555683,1752348638529,-151.0,0.00016465,2]
[371555684,1752348638538,-184.4759593,0.00016465,2]
[371555685,1752348638548,-151.81118239,0.00016465,2]
[371555686,1752348638557,-151.52449373,0.00016465,2]
[371555687,1752348638566,-500.0,0.00016465,2]
[371555688,1752348638576,-500.0,0.00016465,2]
[371555689,1752348638585,-151.0,0.00016465,2]
[371555690,1752348638595,-500.0,0.00016465,2]
[371555691,1752348638605,-460.0,0.00016467,2]
[371555692,1752348638614,-464.46852934,0.00016467,2]
[371555693,1752348638624,-332.98329393,0.00016467,2]
[371555694,1752348638633,-511.85450376,0.00016467,2]
[371555695,1752348638643,-460.0,0.00016467,2]
[371555696,1752348638653,-444.45244042,0.00016467,2]
[371555697,1752348638663,-460.0,0.00016467,2]
[371555698,1752348638673,-460.0,0.00016467,2]
[371555699,1752348638683,-460.0,0.00016467,2]
[371555700,1752348638693,-460.0,0.00016467,2]
[371555701,1752348638703,-500.0,0.00016473,2]
[371555702,1752348638712,-500.0,0.00016473,2]
[371555703,1752348638722,-500.0,0.00016473,2]
[371555704,1752348638732,-500.0,0.00016473,2]
[371555705,1752348638743,-151.0,0.00016493,2]
[371555706,1752348638754,-500.0,0.00016493,2]
[371555707,1752348638765,-151.0,0.00016493,2]
[371555708,1752348638909,-500.0,0.00016493,2]
[371555709,1752348638919,-1678.0,0.00016493,2]
[371555710,1752348638930,-500.0,0.00016493,2]
[371555711,1752348638941,-151.0,0.00016493,2]
[371555712,1752348638951,-500.0,0.00016493,2]
[371555713,1752348638961,-151.0,0.00016493,2]
[371555714,1752348638970,-151.0,0.00016493,2]
[371555715,1752348638979,-151.0,0.00016493,2]
[371555716,1752348638989,-151.0,0.00016493,2]
[371555717,1752348638998,-151.0,0.00016493,2]
[371555718,1752348639008,-151.0,0.00016493,2]
[371555719,1752348639018,-151.0,0.00016493,2]
[371555720,1752348639027,-500.0,0.00016493,2]
[371555721,1752348639036,-151.0,0.00016493,2]
[371555722,1752348639051,-500.0,0.00016493,2]
[371555723,1752348639061,-151.0,0.0001652,2]
[371555724,1752348639071,-500.0,0.0001652,2]
[371555725,1752348639080,-151.0,0.0001652,2]
[371555726,1752348639090,-500.0,0.0001652,2]
[371555727,1752348639100,-1678.0,0.0001652,2]
[371555728,1752348639110,-407.50494148,0.0001652,2]
[371555729,1752348639120,-151.0,0.0001652,2]
[371555730,1752348639130,-500.0,0.0001652,2]
[371555731,1752348639139,-151.0,0.0001652,2]
[371555732,1752348639149,-151.0,0.0001652,2]
[371555733,1752348639159,-151.0,0.0001652,2]
[371555734,1752348639168,-199.92653146,0.0001652,2]
[371555735,1752348639178,-245.0,0.0001652,2]
[371555736,1752348639188,-151.0,0.0001652,2]
[371555737,1752348639197,-500.0,0.0001652,2]
[371555738,1752348639208,-151.0,0.0001652,2]
[371555739,1752348639218,-500.0,0.0001652,2]